fUSD/lending_fUSD_20250609
["ID","MTS","AMOUNT","RATE_DAILY","PERIOD"]
[365105273,1749466300685,-480.0,0.00024657,2]
[365105274,1749466300694,-480.0,0.00024657,2]
[365105275,1749466300704,-480.0,0.00027397,2]
[365105276,1749466300713,-480.0,0.00027397,2]
[365105277,1749466300723,-1200.0,0.000274,2]
[365105278,1749466300732,-480.0,0.00030136,2]
[365105279,1749466300742,-373.42943152,0.00030136,2]
[365105280,1749466300754,-106.57056848,0.00030136,2]
[365105281,1749466300763,-461.18,0.00031452,2]
[365105282,1749466300773,-480.0,0.00032876,2]
[365105283,1749466300782,-409.59096876,0.00032876,2]
[365105284,1749466300791,-323.24677226,0.000329,2]
[365105285,1749466300803,-637.75322774,0.000329,2]
[365105286,1749466300812,-7021.22392586,0.00035,5]
[365105287,1749466300823,-3119.33276107,0.00035,5]
[365105288,1749466300846,-325.67124399,0.00021917,2]
[365105289,1749466300857,-154.32875601,0.00021917,2]
[365105290,1749466300866,-249871.66598931,0.00035,5]
[365105291,1749466300881,-381.5,0.00035,5]
[365105292,1749466300892,-99325.44660894,0.00035,5]
[365105293,1749466300903,-107276.6552775,0.00035,5]
[365105294,1749466300939,-458.70670022,0.00035,5]
[365105295,1749466301491,-1615.74,0.00020078,2]
[365105296,1749466301501,-480.0,0.00021917,2]
[365105297,1749466301512,-497.73103581,0.00021917,2]
[365105298,1749466301521,-796.76,0.00031452,2]
[365105299,1749466301530,-64309.54801879,0.00035,5]
[365105300,1749466301541,-37221.3158182,0.00035,5]
[365105301,1749466301553,-12181.9911041,0.00035,5]
[365105302,1749466301611,-1366.0735264,0.00035,5]
[365105303,1749466301656,-10726.0,0.00035,5]
[365105304,1749466301667,-385.0,0.00035,5]
[365105305,1749466301678,-3160.09115793,0.00035,5]
[365105306,1749466301689,-1216.74371446,0.00035,5]
[365105307,1749466301701,-167445.20478974,0.00035,5]
[365105308,1749466301719,-2534.7,0.00035,5]
[365105309,1749466301731,-459.48999997,0.00035,5]
[365105313,1749466502407,254.67514733,0.000246,120]
[365105319,1749466668086,151.0,0.00024657,120]
[365105326,1749466751121,303.86324161,0.00017052,5]
[365105335,1749466975171,121681.90288756,0.00024658,120]
[365105337,1749467019530,1004.0,0.00024658,120]
[365105344,1749467224949,2000.0,0.00017832,120]
[365105347,1749467279479,456.0,0.0002465,120]
[365105349,1749467313609,948.39,0.00015832,2]
[365105354,1749467356305,333.0,0.00013699,2]
[365105356,1749467363429,2000.0,0.00024649,120]
[365105358,1749467400945,170.21,0.00014133,2]
[365105359,1749467422735,150.0,0.00017052,2]
[365105361,1749467432323,-271.6927737,0.00017215,2]
[365105362,1749467432333,-300.0,0.00017239,2]
[365105363,1749467432343,-300.0,0.00017281,2]
[365105364,1749467432353,-1000.0,0.00017315,2]
[365105365,1749467432362,-1100.0,0.00017315,5]
[365105366,1749467432372,-250.0,0.00017315,2]
[365105367,1749467432382,-1021.39667509,0.00017315,2]
[365105368,1749467432391,-250.0,0.00017534,2]
[365105369,1749467432401,-1200.0,0.00017588,2]
[365105370,1749467432411,-1000.0,0.00017589,2]
[365105371,1749467432421,-1100.0,0.00017589,5]
[365105372,1749467432430,-470.94,0.00017685,2]
[365105373,1749467432440,-300.0,0.00017807,2]
[365105374,1749467432450,-300.0,0.00017807,2]
[365105375,1749467432459,-1000.0,0.00017808,5]
[365105376,1749467432468,-1000.0,0.00017808,2]
[365105377,1749467432478,-1000.0,0.00017863,2]
[365105378,1749467432487,-1100.0,0.00017863,5]
[365105379,1749467432497,-271.69277369,0.00017869,2]
[365105380,1749467432507,-213.3758627,0.000179,2]
[365105381,1749467432516,-6914.53,0.0001799,2]
[365105382,1749467432525,-152.14,0.00018,2]
[365105383,1749467432535,-1000.0,0.00018082,5]
[365105384,1749467432544,-1000.0,0.00018082,2]
[365105385,1749467432555,-948.39,0.00018096,2]
[365105386,1749467432564,-1247.0,0.00018101,2]
[365105387,1749467432574,-1000.0,0.00018137,2]
[365105388,1749467432583,-1100.0,0.00018137,5]
[365105389,1749467432593,-1410.0,0.00018191,2]
[365105390,1749467432602,-1645.0,0.0001828,2]
[365105391,1749467432613,-1000.0,0.00018356,5]
[365105392,1749467432622,-1000.0,0.00018356,2]
[365105393,1749467432632,-850.0,0.00018356,2]
[365105394,1749467432644,-745.0,0.0001837,2]
[365105395,1749467432653,-1000.0,0.00018411,2]
[365105396,1749467432664,-1100.0,0.00018411,5]
[365105397,1749467432673,-746.0,0.0001846,2]
[365105398,1749467432683,-500.0,0.00018509,2]
[365105399,1749467432692,-1000.0,0.00018519,2]
[365105400,1749467432702,-271.69277369,0.00018523,2]
[365105401,1749467432712,-328.0,0.00018549,2]
[365105402,1749467432723,-500.0,0.00018623,2]
[365105403,1749467432732,-500.0,0.00018623,2]
[365105404,1749467432742,-590.65831512,0.00018623,2]
[365105405,1749467432752,-317.85202502,0.00018623,2]
[365105406,1749467432762,-383.94639467,0.00018623,2]
[365105407,1749467432771,-500.0,0.00018623,2]
[365105408,1749467432781,-500.0,0.00018623,2]
[365105409,1749467432790,-500.0,0.00018623,2]
[365105410,1749467432800,-575.0,0.00018623,2]
[365105411,1749467432810,-500.0,0.00018623,2]
[365105412,1749467432819,-500.0,0.00018623,2]
[365105413,1749467432829,-500.0,0.00018623,2]
[365105414,1749467432838,-500.0,0.00018623,2]
[365105415,1749467432848,-500.0,0.00018623,2]
[365105416,1749467432859,-500.0,0.00018623,2]
[365105417,1749467432868,-500.0,0.00018623,2]
[365105418,1749467432878,-500.0,0.00018623,2]
[365105419,1749467432887,-212.3756618,0.00018623,2]
[365105420,1749467432897,-216.56691757,0.00018623,2]
[365105421,1749467432908,-500.0,0.00018623,2]
[365105422,1749467432917,-500.0,0.00018623,2]
[365105423,1749467432927,-500.0,0.00018623,2]
[365105424,1749467432937,-500.0,0.00018623,2]
[365105425,1749467432946,-500.0,0.00018623,2]
[365105426,1749467432955,-500.0,0.00018623,2]
[365105427,1749467432965,-500.0,0.00018623,2]
[365105428,1749467432974,-500.0,0.00018623,2]
[365105429,1749467432984,-500.0,0.00018623,2]
[365105430,1749467432993,-500.0,0.00018623,2]
[365105431,1749467433003,-500.0,0.00018623,2]
[365105432,1749467433012,-500.0,0.00018623,2]
[365105433,1749467433021,-500.0,0.00018623,2]
[365105434,1749467433031,-500.0,0.00018623,2]
[365105435,1749467433041,-500.0,0.00018623,2]
[365105436,1749467433051,-500.0,0.00018623,2]
[365105437,1749467433062,-500.0,0.00018623,2]
[365105438,1749467433072,-500.0,0.00018623,2]
[365105439,1749467433082,-500.0,0.00018623,2]
[365105440,1749467433091,-500.0,0.00018623,2]
[365105441,1749467433101,-500.0,0.00018623,2]
[365105442,1749467433111,-500.0,0.00018623,2]
[365105443,1749467433121,-500.0,0.00018623,2]
[365105444,1749467433130,-500.0,0.00018623,2]
[365105445,1749467433140,-500.0,0.00018623,2]
[365105446,1749467433149,-500.0,0.00018623,2]
[365105447,1749467433162,-500.0,0.00018623,2]
[365105448,1749467433172,-500.0,0.00018623,2]
[365105449,1749467433182,-500.0,0.00018623,2]
[365105450,1749467433192,-500.0,0.00018623,2]
[365105451,1749467433203,-500.0,0.00018623,2]
[365105452,1749467433213,-500.0,0.00018623,2]
[365105453,1749467433224,-500.0,0.00018623,2]
[365105454,1749467433234,-500.0,0.00018623,2]
[365105455,1749467433244,-500.0,0.00018623,2]
[365105456,1749467433255,-500.0,0.00018623,2]
[365105457,1749467433265,-500.0,0.00018623,2]
[365105458,1749467433275,-500.0,0.00018623,2]
[365105459,1749467433285,-500.0,0.00018623,2]
[365105460,1749467433295,-500.0,0.00018623,2]
[365105461,1749467433304,-500.0,0.00018623,2]
[365105462,1749467433315,-500.0,0.00018623,2]
[365105463,1749467433325,-500.0,0.00018623,2]
[365105464,1749467433336,-500.0,0.00018623,2]
[365105465,1749467433346,-500.0,0.00018623,2]
[365105466,1749467433356,-500.0,0.00018623,2]
[365105467,1749467433366,-500.0,0.00018623,2]
[365105468,1749467433376,-500.0,0.00018623,2]
[365105469,1749467433386,-500.0,0.00018623,2]
[365105470,1749467433395,-500.0,0.00018623,2]
[365105471,1749467433405,-500.0,0.00018623,2]
[365105472,1749467433414,-623.13483269,0.00018623,2]
[365105473,1749467433425,-500.0,0.00018623,2]
[365105474,1749467433436,-500.0,0.00018623,2]
[365105475,1749467433447,-500.0,0.00018623,2]
[365105476,1749467433458,-500.0,0.00018623,2]
[365105477,1749467433468,-500.0,0.00018623,2]
[365105478,1749467433478,-500.0,0.00018623,2]
[365105479,1749467433488,-500.0,0.00018623,2]
[365105480,1749467433499,-500.0,0.00018623,2]
[365105481,1749467433510,-500.0,0.00018623,2]
[365105482,1749467433520,-500.0,0.00018623,2]
[365105483,1749467433529,-500.0,0.00018623,2]
[365105484,1749467433539,-500.0,0.00018623,2]
[365105485,1749467433549,-500.0,0.00018623,2]
[365105486,1749467433559,-500.0,0.00018623,2]
[365105487,1749467433569,-500.0,0.00018623,2]
[365105488,1749467433579,-500.0,0.00018623,2]
[365105489,1749467433589,-500.0,0.00018623,2]
[365105490,1749467433599,-500.0,0.00018623,2]
[365105491,1749467433609,-500.0,0.00018623,2]
[365105492,1749467433619,-500.0,0.00018623,2]
[365105493,1749467433629,-499.99999999,0.00018623,2]
[365105494,1749467433639,-1109.89,0.00018624,2]
[365105495,1749467433648,-21115.98820549,0.00018624,2]
[365105496,1749467434065,-428.1850008,0.00018624,2]
[365105497,1749467434096,150.0,0.00017052,5]
[365105507,1749467438242,-300.0,0.00018624,2]
[365105508,1749467438298,-498.88,0.00018624,2]
[365105509,1749467438351,-45144.11679371,0.00018624,2]
[365105510,1749467438362,-1000.0,0.0001863,5]
[365105511,1749467438372,-1000.0,0.0001863,2]
[365105512,1749467438381,-200.0,0.00018631,2]
[365105513,1749467438390,-878.0,0.00018639,2]
[365105514,1749467438400,-250.0,0.00018647,2]
[365105515,1749467438410,-1000.0,0.00018685,2]
[365105516,1749467438420,-1100.0,0.00018685,5]
[365105517,1749467438429,-1347.82,0.00018709,2]
[365105518,1749467438439,-1029.0,0.00018728,2]
[365105519,1749467438449,-166.16,0.00018734,2]
[365105520,1749467438458,-1600.0,0.0001875,2]
[365105521,1749467438468,-200.0,0.00018752,2]
[365105522,1749467438477,-853.0,0.00018818,2]
[365105523,1749467438487,-1000.0,0.00018904,5]
[365105524,1749467438496,-1000.0,0.00018904,2]
[365105525,1749467438506,-1187.0,0.00018908,2]
[365105526,1749467438516,-300.0,0.00018935,2]
[365105527,1749467438526,-300.0,0.00018935,2]
[365105528,1749467438535,-300.0,0.00018937,2]
[365105529,1749467438545,-1000.0,0.00018959,2]
[365105530,1749467438555,-1100.0,0.00018959,5]
[365105531,1749467438564,-1023.0,0.00018997,2]
[365105533,1749467438573,-250.0,0.00019047,2]
[365105534,1749467438583,-1000.0,0.00019178,5]
[365105535,1749467438592,-1000.0,0.00019178,2]
[365105536,1749467438601,-500.0,0.00019178,2]
[365105537,1749467438610,-500.0,0.00019178,2]
[365105538,1749467438619,-500.0,0.00019178,2]
[365105539,1749467438629,-500.0,0.00019178,2]
[365105540,1749467438638,-500.0,0.00019178,2]
[365105541,1749467438649,-500.0,0.00019178,2]
[365105542,1749467438659,-500.0,0.00019178,2]
[365105543,1749467438668,-500.0,0.00019178,2]
[365105545,1749467438677,-299.28596317,0.00019178,2]
[365105547,1749467438687,-500.0,0.00019178,2]
[365105549,1749467438696,-1500.0,0.00019178,2]
[365105551,1749467438707,-1000.0,0.00019233,2]
[365105553,1749467438716,-1100.0,0.00019233,5]
[365105555,1749467438726,-1680.0,0.00019293,2]
[365105558,1749467438735,-300.0,0.00019433,2]
[365105560,1749467438744,-420.0,0.00019433,2]
[365105562,1749467438754,-1000.0,0.00019507,2]
[365105565,1749467438764,-1100.0,0.00019507,5]
[365105567,1749467438773,-193.21,0.00019615,2]
[365105569,1749467438783,-205.0,0.00019771,2]
[365105571,1749467438792,-1000.0,0.00019781,2]
[365105573,1749467438801,-1100.0,0.00019781,5]
[365105575,1749467438810,-223.74292788,0.00019787,2]
[365105577,1749467438819,-5804.85401964,0.00019787,2]
[365105579,1749467438829,-335.4133,0.00019799,2]
[365105581,1749467438838,-500.0,0.00019886,2]
[365105583,1749467438847,-168.21295486,0.00019886,2]
[365105585,1749467438856,-292.34051546,0.00019886,2]
[365105587,1749467438866,-403.5372636,0.00019886,2]
[365105589,1749467438875,-12500.0,0.000199,2]
[365105591,1749467438885,-12500.0,0.00019965,2]
[365105593,1749467438894,-5800.0,0.00019966,2]
[365105595,1749467438903,-665.56,0.00019972,2]
[365105597,1749467438912,-12500.0,0.00019974,2]
[365105599,1749467438921,-5800.0,0.00019975,2]
[365105601,1749467438930,-500.0,0.00019982,2]
[365105603,1749467438939,-12500.0,0.00019982,2]
[365105604,1749467438948,-5800.0,0.00019983,2]
[365105606,1749467438957,-12500.0,0.00019991,2]
[365105608,1749467438966,-5800.0,0.00019992,2]
[365105610,1749467438976,-209.4,0.0002,2]
[365105612,1749467438985,-12500.0,0.0002,2]
[365105614,1749467438994,-5800.0,0.0002,2]
[365105616,1749467439004,-480.0,0.0002,7]
[365105618,1749467439013,-480.0,0.0002,7]
[365105620,1749467439023,-192.1016269,0.0002,4]
[365105622,1749467439032,-369.7050178,0.0002,7]
[365105624,1749467439042,-369.7050178,0.0002,7]
[365105626,1749467439051,-167.35,0.00020153,2]
[365105628,1749467439061,-333.0,0.00020187,2]
[365105630,1749467439070,-948.39,0.0002036,2]
[365105632,1749467439079,-708.19,0.000208,31]
[365105634,1749467439089,-708.19,0.000208,31]
[365105636,1749467439098,-708.19,0.000208,31]
[365105638,1749467439108,-708.19,0.000208,31]
[365105641,1749467439119,-708.19,0.000208,31]
[365105643,1749467439128,-708.19,0.000208,31]
[365105645,1749467439137,-708.19,0.000208,31]
[365105647,1749467439146,-708.19,0.000208,31]
[365105649,1749467439159,-708.19,0.000208,31]
[365105651,1749467439171,-708.19,0.000208,31]
[365105653,1749467439182,-708.19,0.000208,31]
[365105655,1749467439191,-708.19,0.000208,31]
[365105657,1749467439201,-708.19,0.000208,31]
[365105659,1749467439210,-708.19,0.000208,31]
[365105661,1749467439220,-708.19,0.000208,31]
[365105663,1749467439230,-708.19,0.000208,31]
[365105665,1749467439241,-1000.0,0.00020834,2]
[365105667,1749467439251,-300.0,0.0002087,2]
[365105669,1749467439260,-1000.0,0.00020986,2]
[365105671,1749467439270,-1600.0,0.00021093,2]
[365105673,1749467439279,-421.0,0.00021208,2]
[365105675,1749467439288,-167.35,0.00021262,2]
[365105677,1749467439298,-213.37586264,0.000214,5]
[365105679,1749467439308,-5804.85401955,0.00021466,2]
[365105681,1749467439317,-1500.0,0.00021644,2]
[365105683,1749467439327,-1000.0,0.00021773,2]
[365105685,1749467439337,-2500.0,0.00021816,2]
[365105687,1749467439346,-154.66977576,0.00021816,5]
[365105689,1749467439356,-532.37269024,0.00021816,2]
[365105691,1749467439366,-160.36333859,0.00021817,2]
[365105693,1749467439375,-1036.70095273,0.00021817,2]
[365105695,1749467439385,-492.45992337,0.00021817,2]
[365105697,1749467439396,-2000.0,0.00021916,2]
[365105699,1749467439406,-2000.0,0.00021916,2]
[365105701,1749467439415,-2000.0,0.00021916,2]
[365105703,1749467439425,-1464.2548,0.00021916,2]
[365105705,1749467439434,-626.67293552,0.00021916,2]
[365105707,1749467439443,-152.14,0.00021917,2]
[365105709,1749467439453,-259.22795996,0.00021917,2]
[365105711,1749467439462,-460.0,0.00021917,2]
[365105713,1749467439472,-460.0,0.00021917,2]
[365105715,1749467439481,-460.0,0.00021917,2]
[365105717,1749467439491,-450.24678777,0.00021917,2]
[365105719,1749467439500,-424.68055595,0.00021917,2]
[365105721,1749467439509,-480.0,0.00021917,2]
[365105723,1749467439519,-480.0,0.00021917,2]
[365105724,1749467439528,-382.40802733,0.00021917,2]
[365105726,1749467439537,-183.475007,0.00021917,2]
[365105728,1749467439546,-153.285334,0.00021917,2]
[365105730,1749467439555,-200.95495725,0.00021917,2]
[365105732,1749467439565,-480.19038738,0.00021917,2]
[365105734,1749467439574,-155.859352,0.00021917,2]
[365105736,1749467439583,-153.303628,0.00021917,2]
[365105738,1749467439593,-480.0,0.00021917,2]
[365105740,1749467439603,-349.33853246,0.00021917,2]
[365105742,1749467439612,-460.0,0.00021917,2]
[365105744,1749467439621,-460.0,0.00021917,2]
[365105746,1749467439630,-460.0,0.00021917,2]
[365105748,1749467439639,-460.0,0.00021917,2]
[365105750,1749467439649,-564.06,0.00021917,2]
[365105752,1749467439658,-480.0,0.00021917,2]
[365105754,1749467439667,-460.0,0.00021917,2]
[365105756,1749467439677,-481.59590456,0.00021917,2]
[365105758,1749467439687,-421.87562845,0.00021917,2]
[365105760,1749467439697,-480.0,0.00021917,2]
[365105762,1749467439706,-460.0,0.00021917,2]
[365105764,1749467439715,-460.0,0.00021917,2]
[365105766,1749467439724,-420.0,0.00021917,2]
[365105768,1749467439733,-480.0,0.00021917,2]
[365105770,1749467439742,-460.0,0.00021917,2]
[365105772,1749467439751,-480.0,0.00021917,2]
[365105774,1749467439760,-758.31,0.00021917,2]
[365105776,1749467439770,-480.0,0.00021917,2]
[365105778,1749467439780,-480.0,0.00021917,2]
[365105780,1749467439790,-460.0,0.00021917,2]
[365105782,1749467439799,-593.76,0.00021917,2]
[365105784,1749467439809,-212.46668822,0.00021917,2]
[365105786,1749467439818,-480.0,0.00021917,2]
[365105789,1749467439828,-480.0,0.00021917,2]
[365105791,1749467439838,-527.06,0.00021917,2]
[365105793,1749467439847,-480.0,0.00021917,2]
[365105795,1749467439856,-484.17604451,0.00021917,2]
[365105797,1749467439867,-480.0,0.00021917,2]
[365105799,1749467439876,-752.26,0.00021917,2]
[365105800,1749467439886,-480.0,0.00021917,2]
[365105803,1749467439896,-480.0,0.00021917,2]
[365105804,1749467439907,-480.0,0.00021917,2]
[365105806,1749467439916,-480.0,0.00021917,2]
[365105808,1749467439925,-480.0,0.00021917,2]
[365105810,1749467439935,-251.67339561,0.00021917,2]
[365105812,1749467439944,-480.0,0.00021917,2]
[365105814,1749467439953,-226.30007334,0.00021917,2]
[365105816,1749467439963,-480.0,0.00021917,2]
[365105819,1749467439973,-320.76445013,0.00021917,2]
[365105821,1749467439982,-570.48,0.00021917,2]
[365105840,1749467440148,-460.0,0.00021917,2]
[365105843,1749467440168,-500.0,0.00021917,2]
[365105845,1749467440177,-480.0,0.00021917,2]
[365105848,1749467440187,-480.0,0.00021917,2]
[365105851,1749467440198,-460.0,0.00021917,2]
[365105854,1749467440210,-480.0,0.00021917,2]
[365105857,1749467440219,-480.0,0.00021917,2]
[365105860,1749467440228,-480.0,0.00021917,2]
[365105863,1749467440238,-480.0,0.00021917,2]
[365105866,1749467440247,-480.0,0.00021917,2]
[365105869,1749467440256,-422.64700579,0.00021917,2]
[365105872,1749467440266,-480.0,0.00021917,2]
[365105875,1749467440275,-460.0,0.00021917,2]
[365105878,1749467440286,-480.0,0.00021917,2]
[365105881,1749467440296,-480.0,0.00021917,2]
[365105884,1749467440305,-460.0,0.00021917,2]
[365105887,1749467440315,-795.43,0.00021917,2]
[365105890,1749467440324,-460.0,0.00021917,2]
[365105892,1749467440333,-424.22574765,0.00021917,2]
[365105894,1749467440342,-579.59,0.00021917,2]
[365105896,1749467440352,-480.0,0.00021917,2]
[365105898,1749467440361,-1024.32,0.00021917,2]
[365105900,1749467440371,-480.0,0.00021917,2]
[365105902,1749467440380,-460.0,0.00021917,2]
[365105904,1749467440389,-480.0,0.00021917,2]
[365105905,1749467440399,-798.33,0.00021917,2]
[365105907,1749467440408,-460.0,0.00021917,2]
[365105909,1749467440417,-480.0,0.00021917,2]
[365105912,1749467440427,-1145.79,0.00021917,2]
[365105913,1749467440438,-461.35819104,0.00021917,2]
[365105915,1749467440448,-613.4,0.00021917,2]
[365105917,1749467440457,-480.0,0.00021917,2]
[365105919,1749467440466,-621.53,0.00021917,2]
[365105921,1749467440475,-460.0,0.00021917,2]
[365105923,1749467440484,-480.0,0.00021917,2]
[365105925,1749467440493,-480.0,0.00021917,2]
[365105927,1749467440502,-480.0,0.00021917,2]
[365105929,1749467440511,-460.0,0.00021917,2]
[365105930,1749467440520,-460.0,0.00021917,2]
[365105931,1749467440529,-480.0,0.00021917,2]
[365105932,1749467440538,-480.0,0.00021917,2]
[365105933,1749467440547,-480.0,0.00021917,2]
[365105934,1749467440556,-1390.49,0.00021917,2]
[365105935,1749467440565,-666.6,0.00021917,2]
[365105936,1749467440575,-480.0,0.00021917,2]
[365105937,1749467440584,-480.0,0.00021917,2]
[365105938,1749467440593,-480.0,0.00021917,2]
[365105939,1749467440602,-590.55,0.00021917,2]
[365105940,1749467440612,-480.0,0.00021917,2]
[365105941,1749467440621,-339.85161379,0.00021917,2]
[365105943,1749467440631,-460.0,0.00021917,2]
[365105945,1749467440640,-483.01,0.00021917,2]
[365105947,1749467440649,-480.0,0.00021917,2]
[365105949,1749467440659,-1003.98,0.00021917,2]
[365105951,1749467440668,-480.56325481,0.00021917,2]
[365105953,1749467440678,-480.0,0.00021917,2]
[365105955,1749467440687,-480.0,0.00021917,2]
[365105957,1749467440697,-496.39364451,0.00021917,2]
[365105959,1749467440706,-460.0,0.00021917,2]
[365105961,1749467440716,-460.0,0.00021917,2]
[365105963,1749467440725,-460.0,0.00021917,2]
[365105965,1749467440734,-460.0,0.00021917,2]
[365105967,1749467440744,-460.0,0.00021917,2]
[365105969,1749467440753,-480.0,0.00021917,2]
[365105971,1749467440763,-480.0,0.00021917,2]
[365105973,1749467440773,-460.0,0.00021917,2]
[365105975,1749467440782,-460.0,0.00021917,2]
[365105977,1749467440792,-460.0,0.00021917,2]
[365105979,1749467440802,-480.0,0.00021917,2]
[365105981,1749467440812,-480.0,0.00021917,2]
[365105983,1749467440821,-503.13804434,0.00021917,2]
[365105985,1749467440831,-460.0,0.00021917,2]
[365105987,1749467440841,-460.0,0.00021917,2]
[365105989,1749467440850,-460.0,0.00021917,2]
[365105991,1749467440859,-480.0,0.00021917,2]
[365105993,1749467440869,-480.0,0.00021917,2]
[365105995,1749467440878,-460.0,0.00021917,2]
[365105997,1749467440887,-460.0,0.00021917,2]
[365105999,1749467440897,-500.0,0.00021917,2]
[365106001,1749467440907,-434.88723089,0.00021917,2]
[365106003,1749467440916,-625.34761096,0.00021917,2]
[365106005,1749467440925,-1548.57,0.00021917,2]
[365106007,1749467440935,-460.0,0.00021917,2]
[365106009,1749467440945,-460.0,0.00021917,2]
[365106011,1749467440954,-480.0,0.00021917,2]
[365106013,1749467440963,-426.0,0.00021917,2]
[365106015,1749467440973,-460.0,0.00021917,2]
[365106018,1749467440983,-460.0,0.00021917,2]
[365106020,1749467440992,-480.0,0.00021917,2]
[365106022,1749467441001,-1152.84,0.00021917,2]
[365106024,1749467441010,-430.54850209,0.00021917,2]
[365106025,1749467441019,-460.0,0.00021917,2]
[365106027,1749467441028,-480.0,0.00021917,2]
[365106029,1749467441038,-463.12959553,0.00021917,2]
[365106031,1749467441047,-480.0,0.00021917,2]
[365106033,1749467441056,-480.0,0.00021917,2]
[365106035,1749467441065,-480.0,0.00021917,2]
[365106037,1749467441075,-868.27,0.00021917,2]
[365106040,1749467441085,-480.0,0.00021917,2]
[365106041,1749467441094,-480.0,0.00021917,2]
[365106044,1749467441103,-250.0,0.00021917,2]
[365106045,1749467441112,-460.0,0.00021917,2]
[365106047,1749467441122,-658.72,0.00021917,2]
[365106049,1749467441131,-422.1066681,0.00021917,2]
[365106051,1749467441140,-267.75880041,0.00021917,2]
[365106053,1749467441150,-712.4,0.00021917,2]
[365106055,1749467441164,-460.0,0.00021917,2]
[365106057,1749467441173,-480.0,0.00021917,2]
[365106059,1749467441183,-460.0,0.00021917,2]
[365106061,1749467441192,-246.62387386,0.00021917,2]
[365106063,1749467441201,-480.0,0.00021917,2]
[365106065,1749467441211,-460.0,0.00021917,2]
[365106068,1749467441221,-480.0,0.00021917,2]
[365106070,1749467441231,-501.90838941,0.00021917,2]
[365106072,1749467441240,-1162.05,0.00021917,2]
[365106073,1749467441252,-460.0,0.00021917,2]
[365106076,1749467441263,-480.0,0.00021917,2]
[365106078,1749467441272,-480.0,0.00021917,2]
[365106080,1749467441282,-480.0,0.00021917,2]
[365106081,1749467441291,-460.0,0.00021917,2]
[365106083,1749467441302,-460.0,0.00021917,2]
[365106086,1749467441311,-241.9710903,0.00021917,2]
[365106088,1749467441321,-463.4862795,0.00021917,2]
[365106090,1749467441331,-480.0,0.00021917,2]
[365106092,1749467441341,-420.0,0.00021917,2]
[365106094,1749467441352,-460.0,0.00021917,2]
[365106096,1749467441362,-460.0,0.00021917,2]
[365106098,1749467441372,-480.0,0.00021917,2]
[365106100,1749467441383,-460.0,0.00021917,2]
[365106102,1749467441392,-480.0,0.00021917,2]
[365106104,1749467441402,-460.0,0.00021917,2]
[365106106,1749467441411,-460.0,0.00021917,2]
[365106107,1749467441421,-460.0,0.00021917,2]
[365106109,1749467441430,-480.0,0.00021917,2]
[365106111,1749467441440,-392.09163776,0.00021917,2]
[365106113,1749467441450,-480.0,0.00021917,2]
[365106115,1749467441459,-460.0,0.00021917,2]
[365106117,1749467441469,-480.0,0.00021917,2]
[365106119,1749467441478,-420.0,0.00021917,2]
[365106121,1749467441488,-550.25,0.00021917,2]